Workbook

Sheet Plixus powered
A1: Plixus power calculator - Plixus powered devices << Version 1.12 - VALID FROM 14/10/2022 UNTIL 01/06/2023 >>
A3: Legend | B3: user may enter any value
B4: user must select a predefined value
B5: user may not alter this value
B6: calculated result
B7: very important calculated result
B8: result outside limits
A10: Power supply voltage | E10: 48 | F10: [V] | K10: Power supply power | N10: 275.1514561 | O10: [W]
A11: Number of network extenders used | E11: 8 | K11: Power supply current | N11: 5.732322003 | O11: [A]
E12: 1
A13: Network extender Power cabling | E13: Branch | G13: Device | J13: Cabling NE to first device Plixus cabling | N13: Cabling between devices Plixus cabling | R13: Calculated results
A14: Index | B14: Cable | C14: Length | D14: Port | E14: Name | F14: Voltage | G14: Type | H14: Power | I14: Number of | J14: Length | K14: AWG | L14: Ohm/m | M14: Wiring type | N14: Length | O14: AWG | P14: Ohm/m | Q14: invalid | R14: #iter | S14: P device(s) | T14: P branch | U14: I start | V14: U first device | W14: U last device | X14: Cable loss
A15: [-] | B15: [mm2] | C15: [m] | D15: [-] | F15: [V] | G15: [-] | H15: [W] | I15: [-] | J15: [m] | K15: [-] | L15: [Ohm] | M15: [-] | N15: [m] | O15: [-] | P15: [Ohm] | Q15: [-] | R15: [-] | S15: [W] | T15: [W] | U15: [A] | V15: [V] | W15: [V] | X15: [W]
A16: 1 | B16: 1.5 | C16: 20 | D16: 1 | E16: loop 1a | F16: 45.43191974 | G16: uniCOS T/MM10 2xUSB | H16: =VLOOKUP(G16,parameters!$D$4:$E$24,2,FALSE) -> 17.5 | I16: 5 | J16: 40 | K16: 24 STANDARD | L16: =VLOOKUP(K16,parameters!$G$4:$H$15,2,FALSE) -> 0.08422 | N16: 3 | O16: 24 STANDARD | P16: =VLOOKUP(O16,parameters!$G$4:$H$15,2,FALSE) -> 0.08422 | Q16: invalid | R16: 19 | S16: 87.5 | T16: 108.3692077 | U16: 2.385309896 | V16: 37.39706925 | W16: 36.32006611 | X16: 20.86920773
D17: 2 | E17: loop 2a | F17: 45.43270122 | G17: Confidea FLEX | H17: =VLOOKUP(G17,parameters!$D$4:$E$24,2,FALSE) -> 6 | I17: 0 | J17: 30 | K17: 24 STANDARD | L17: =VLOOKUP(K17,parameters!$G$4:$H$15,2,FALSE) -> 0.08422 | N17: 2 | O17: 26 PATCH | P17: =VLOOKUP(O17,parameters!$G$4:$H$15,2,FALSE) -> 0.1339
B18: [Ohm/m] | D18: 3 | E18: loop 3a | F18: 45.43375743 | G18: Lingua ID / ID-MM | H18: =VLOOKUP(G18,parameters!$D$4:$E$24,2,FALSE) -> 11 | I18: 5 | J18: 25 | K18: 24 STANDARD | L18: =VLOOKUP(K18,parameters!$G$4:$H$15,2,FALSE) -> 0.08422 | N18: 3 | O18: 28 | P18: =VLOOKUP(O18,parameters!$G$4:$H$15,2,FALSE) -> 0.2129 | S18: 55 | T18: 60.01429981 | U18: 1.3209187 | V18: 42.65401438 | W18: 41.13288548 | X18: 5.014299814
B19: =VLOOKUP(B16,parameters!$M$4:$N$15,2,FALSE) -> 0.0112 | D19: 4 | E19: loop 4a | F19: 45.4352087 | G19: Lingua ID / ID-MM | H19: =VLOOKUP(G19,parameters!$D$4:$E$24,2,FALSE) -> 11 | I19: 0 | J19: 50 | K19: 24 STANDARD | L19: =VLOOKUP(K19,parameters!$G$4:$H$15,2,FALSE) -> 0.08422 | N19: 3 | O19: 24 STANDARD | P19: =VLOOKUP(O19,parameters!$G$4:$H$15,2,FALSE) -> 0.08422
A20: 2 | B20: 2.5 | C20: 1 | D20: 1 | E20: loop 1b | F20: 45.41235276 | G20: Confidea FLEX | H20: =VLOOKUP(G20,parameters!$D$4:$E$24,2,FALSE) -> 6 | I20: 4 | J20: 50 | K20: 24 STANDARD | L20: =VLOOKUP(K20,parameters!$G$4:$H$15,2,FALSE) -> 0.08422 | N20: 2 | O20: 24 STANDARD | P20: =VLOOKUP(O20,parameters!$G$4:$H$15,2,FALSE) -> 0.08422 | S20: 24 | T20: 25.34656102 | U20: 0.5581424322 | V20: 43.06475751 | W20: 42.95713086 | X20: 1.34656102
D21: 2 | E21: loop 2b | F21: 45.41509529 | G21: Confidea FLEX | H21: =VLOOKUP(G21,parameters!$D$4:$E$24,2,FALSE) -> 6 | I21: 4 | J21: 50 | K21: 24 STANDARD | L21: =VLOOKUP(K21,parameters!$G$4:$H$15,2,FALSE) -> 0.08422 | N21: 2 | O21: 24 STANDARD | P21: =VLOOKUP(O21,parameters!$G$4:$H$15,2,FALSE) -> 0.08422 | S21: 24 | T21: 25.34054561 | U21: 0.5579762731 | V21: 43.06911905 | W21: 42.96714244 | X21: 1.340545609
B22: [Ohm/m] | D22: 3 | E22: loop 3b | F22: 45.41875714 | G22: Confidea FLEX | H22: =VLOOKUP(G22,parameters!$D$4:$E$24,2,FALSE) -> 6 | I22: 4 | J22: 50 | K22: 24 STANDARD | L22: =VLOOKUP(K22,parameters!$G$4:$H$15,2,FALSE) -> 0.08422 | N22: 2 | O22: 24 STANDARD | P22: =VLOOKUP(O22,parameters!$G$4:$H$15,2,FALSE) -> 0.08422 | S22: 24 | T22: 25.33173029 | U22: 0.5577371968 | V22: 43.07470084 | W22: 42.98235774 | X22: 1.331730291
B23: =VLOOKUP(B20,parameters!$M$4:$N$15,2,FALSE) -> 0.00672 | D23: 4 | E23: loop 4b | F23: 45.42333217 | G23: Confidea FLEX | H23: =VLOOKUP(G23,parameters!$D$4:$E$24,2,FALSE) -> 6 | I23: 0 | J23: 50 | K23: 24 STANDARD | L23: =VLOOKUP(K23,parameters!$G$4:$H$15,2,FALSE) -> 0.08422 | N23: 2 | O23: 24 STANDARD | P23: =VLOOKUP(O23,parameters!$G$4:$H$15,2,FALSE) -> 0.08422
A24: 3 | B24: 2.5 | D24: 1 | E24: loop 5a | G24: uniBOX 2xUSB | H24: =VLOOKUP(G24,parameters!$D$4:$E$24,2,FALSE) -> 13.8 | I24: 3 | J24: 50 | K24: 24 STANDARD | L24: =VLOOKUP(K24,parameters!$G$4:$H$15,2,FALSE) -> 0.08422 | N24: 2 | O24: 24 STANDARD | P24: =VLOOKUP(O24,parameters!$G$4:$H$15,2,FALSE) -> 0.08422
D25: 2 | E25: loop 6a | G25: uniBOX 2xUSB | H25: =VLOOKUP(G25,parameters!$D$4:$E$24,2,FALSE) -> 13.8 | I25: 3 | J25: 50 | K25: 24 STANDARD | L25: =VLOOKUP(K25,parameters!$G$4:$H$15,2,FALSE) -> 0.08422 | N25: 2 | O25: 24 STANDARD | P25: =VLOOKUP(O25,parameters!$G$4:$H$15,2,FALSE) -> 0.08422
B26: [Ohm/m] | D26: 3 | E26: loop 7a | G26: uniBOX 2xUSB | H26: =VLOOKUP(G26,parameters!$D$4:$E$24,2,FALSE) -> 13.8 | I26: 3 | J26: 50 | K26: 24 STANDARD | L26: =VLOOKUP(K26,parameters!$G$4:$H$15,2,FALSE) -> 0.08422 | N26: 2 | O26: 24 STANDARD | P26: =VLOOKUP(O26,parameters!$G$4:$H$15,2,FALSE) -> 0.08422
B27: =VLOOKUP(B24,parameters!$M$4:$N$15,2,FALSE) -> 0.00672 | D27: 4 | E27: loop 7b | G27: uniBOX 2xUSB | H27: =VLOOKUP(G27,parameters!$D$4:$E$24,2,FALSE) -> 13.8 | I27: 4 | J27: 50 | K27: 24 STANDARD | L27: =VLOOKUP(K27,parameters!$G$4:$H$15,2,FALSE) -> 0.08422 | N27: 2 | O27: 24 STANDARD | P27: =VLOOKUP(O27,parameters!$G$4:$H$15,2,FALSE) -> 0.08422
A28: 4 | B28: 2.5 | D28: 1 | E28: loop 5b | G28: uniBOX 2xUSB | H28: =VLOOKUP(G28,parameters!$D$4:$E$24,2,FALSE) -> 13.8 | I28: 4 | J28: 50 | K28: 24 STANDARD | L28: =VLOOKUP(K28,parameters!$G$4:$H$15,2,FALSE) -> 0.08422 | N28: 2 | O28: 24 STANDARD | P28: =VLOOKUP(O28,parameters!$G$4:$H$15,2,FALSE) -> 0.08422
D29: 2 | E29: loop 6b | G29: uniBOX 2xUSB | H29: =VLOOKUP(G29,parameters!$D$4:$E$24,2,FALSE) -> 13.8 | I29: 4 | J29: 50 | K29: 24 STANDARD | L29: =VLOOKUP(K29,parameters!$G$4:$H$15,2,FALSE) -> 0.08422 | N29: 2 | O29: 24 STANDARD | P29: =VLOOKUP(O29,parameters!$G$4:$H$15,2,FALSE) -> 0.08422
B30: [Ohm/m] | D30: 3 | E30: loop 7b | G30: uniBOX 2xUSB | H30: =VLOOKUP(G30,parameters!$D$4:$E$24,2,FALSE) -> 13.8 | I30: 4 | J30: 50 | K30: 24 STANDARD | L30: =VLOOKUP(K30,parameters!$G$4:$H$15,2,FALSE) -> 0.08422 | N30: 2 | O30: 24 STANDARD | P30: =VLOOKUP(O30,parameters!$G$4:$H$15,2,FALSE) -> 0.08422
B31: =VLOOKUP(B28,parameters!$M$4:$N$15,2,FALSE) -> 0.00672 | D31: 4 | E31: loop 8b | G31: uniBOX 2xUSB | H31: =VLOOKUP(G31,parameters!$D$4:$E$24,2,FALSE) -> 13.8 | I31: 2 | J31: 50 | K31: 24 STANDARD | L31: =VLOOKUP(K31,parameters!$G$4:$H$15,2,FALSE) -> 0.08422 | N31: 2 | O31: 24 STANDARD | P31: =VLOOKUP(O31,parameters!$G$4:$H$15,2,FALSE) -> 0.08422
A32: 5 | B32: 2.5 | D32: 1 | E32: loop 9a | G32: Confidea F-DV/F-DI | H32: =VLOOKUP(G32,parameters!$D$4:$E$24,2,FALSE) -> 4.8 | I32: 5 | J32: 20 | K32: 24 STANDARD | L32: =VLOOKUP(K32,parameters!$G$4:$H$15,2,FALSE) -> 0.08422 | N32: 2 | O32: 24 STANDARD | P32: =VLOOKUP(O32,parameters!$G$4:$H$15,2,FALSE) -> 0.08422
D33: 2 | E33: loop 10a | G33: Confidea F-DV/F-DI | H33: =VLOOKUP(G33,parameters!$D$4:$E$24,2,FALSE) -> 4.8 | I33: 5 | J33: 20 | K33: 24 STANDARD | L33: =VLOOKUP(K33,parameters!$G$4:$H$15,2,FALSE) -> 0.08422 | N33: 2 | O33: 24 STANDARD | P33: =VLOOKUP(O33,parameters!$G$4:$H$15,2,FALSE) -> 0.08422
B34: [Ohm/m] | D34: 3 | E34: loop 11a | G34: Confidea F-DV/F-DI | H34: =VLOOKUP(G34,parameters!$D$4:$E$24,2,FALSE) -> 4.8 | I34: 5 | J34: 20 | K34: 24 STANDARD | L34: =VLOOKUP(K34,parameters!$G$4:$H$15,2,FALSE) -> 0.08422 | N34: 2 | O34: 24 STANDARD | P34: =VLOOKUP(O34,parameters!$G$4:$H$15,2,FALSE) -> 0.08422
B35: =VLOOKUP(B32,parameters!$M$4:$N$15,2,FALSE) -> 0.00672 | D35: 4 | E35: loop 12a | G35: Confidea F-DV/F-DI | H35: =VLOOKUP(G35,parameters!$D$4:$E$24,2,FALSE) -> 4.8 | I35: 5 | J35: 20 | K35: 24 STANDARD | L35: =VLOOKUP(K35,parameters!$G$4:$H$15,2,FALSE) -> 0.08422 | N35: 2 | O35: 24 STANDARD | P35: =VLOOKUP(O35,parameters!$G$4:$H$15,2,FALSE) -> 0.08422
A36: 6 | B36: 2.5 | D36: 1 | E36: loop 9b | G36: Confidea F-DV/F-DI | H36: =VLOOKUP(G36,parameters!$D$4:$E$24,2,FALSE) -> 4.8 | I36: 5 | J36: 20 | K36: 24 STANDARD | L36: =VLOOKUP(K36,parameters!$G$4:$H$15,2,FALSE) -> 0.08422 | N36: 2 | O36: 24 STANDARD | P36: =VLOOKUP(O36,parameters!$G$4:$H$15,2,FALSE) -> 0.08422
D37: 2 | E37: loop 10b | G37: Confidea F-DV/F-DI | H37: =VLOOKUP(G37,parameters!$D$4:$E$24,2,FALSE) -> 4.8 | I37: 0 | J37: 20 | K37: 24 STANDARD | L37: =VLOOKUP(K37,parameters!$G$4:$H$15,2,FALSE) -> 0.08422 | O37: 24 STANDARD | P37: =VLOOKUP(O37,parameters!$G$4:$H$15,2,FALSE) -> 0.08422
B38: [Ohm/m] | D38: 3 | E38: loop 11b | G38: Confidea F-DV/F-DI | H38: =VLOOKUP(G38,parameters!$D$4:$E$24,2,FALSE) -> 4.8 | I38: 0 | J38: 20 | K38: 24 STANDARD | L38: =VLOOKUP(K38,parameters!$G$4:$H$15,2,FALSE) -> 0.08422 | O38: 24 STANDARD | P38: =VLOOKUP(O38,parameters!$G$4:$H$15,2,FALSE) -> 0.08422
B39: =VLOOKUP(B36,parameters!$M$4:$N$15,2,FALSE) -> 0.00672 | D39: 4 | E39: loop 12b | G39: Confidea F-DV/F-DI | H39: =VLOOKUP(G39,parameters!$D$4:$E$24,2,FALSE) -> 4.8 | I39: 0 | J39: 20 | K39: 24 STANDARD | L39: =VLOOKUP(K39,parameters!$G$4:$H$15,2,FALSE) -> 0.08422 | O39: 24 STANDARD | P39: =VLOOKUP(O39,parameters!$G$4:$H$15,2,FALSE) -> 0.08422
A40: 7 | B40: 2.5 | D40: 1 | E40: loop 13a | G40: Confidea F-DV/F-DI | H40: =VLOOKUP(G40,parameters!$D$4:$E$24,2,FALSE) -> 4.8 | I40: 0 | J40: 20 | K40: 24 STANDARD | L40: =VLOOKUP(K40,parameters!$G$4:$H$15,2,FALSE) -> 0.08422 | O40: 24 STANDARD | P40: =VLOOKUP(O40,parameters!$G$4:$H$15,2,FALSE) -> 0.08422
D41: 2 | E41: loop 14a | G41: Confidea F-DV/F-DI | H41: =VLOOKUP(G41,parameters!$D$4:$E$24,2,FALSE) -> 4.8 | I41: 0 | J41: 20 | K41: 24 STANDARD | L41: =VLOOKUP(K41,parameters!$G$4:$H$15,2,FALSE) -> 0.08422 | O41: 24 STANDARD | P41: =VLOOKUP(O41,parameters!$G$4:$H$15,2,FALSE) -> 0.08422
B42: [Ohm/m] | D42: 3 | E42: loop 15a | G42: Confidea F-DV/F-DI | H42: =VLOOKUP(G42,parameters!$D$4:$E$24,2,FALSE) -> 4.8 | I42: 0 | J42: 20 | K42: 24 STANDARD | L42: =VLOOKUP(K42,parameters!$G$4:$H$15,2,FALSE) -> 0.08422 | O42: 24 STANDARD | P42: =VLOOKUP(O42,parameters!$G$4:$H$15,2,FALSE) -> 0.08422
B43: =VLOOKUP(B40,parameters!$M$4:$N$15,2,FALSE) -> 0.00672 | D43: 4 | E43: loop 16a | G43: Confidea F-DV/F-DI | H43: =VLOOKUP(G43,parameters!$D$4:$E$24,2,FALSE) -> 4.8 | I43: 0 | J43: 20 | K43: 24 STANDARD | L43: =VLOOKUP(K43,parameters!$G$4:$H$15,2,FALSE) -> 0.08422 | O43: 24 STANDARD | P43: =VLOOKUP(O43,parameters!$G$4:$H$15,2,FALSE) -> 0.08422
A44: 8 | B44: 2.5 | D44: 1 | E44: loop 13b | G44: Confidea F-DV/F-DI | H44: =VLOOKUP(G44,parameters!$D$4:$E$24,2,FALSE) -> 4.8 | I44: 0 | J44: 20 | K44: 24 STANDARD | L44: =VLOOKUP(K44,parameters!$G$4:$H$15,2,FALSE) -> 0.08422 | O44: 24 STANDARD | P44: =VLOOKUP(O44,parameters!$G$4:$H$15,2,FALSE) -> 0.08422
D45: 2 | E45: loop 14b | G45: Confidea F-DV/F-DI | H45: =VLOOKUP(G45,parameters!$D$4:$E$24,2,FALSE) -> 4.8 | I45: 0 | J45: 20 | K45: 24 STANDARD | L45: =VLOOKUP(K45,parameters!$G$4:$H$15,2,FALSE) -> 0.08422 | O45: 24 STANDARD | P45: =VLOOKUP(O45,parameters!$G$4:$H$15,2,FALSE) -> 0.08422
B46: [Ohm/m] | D46: 3 | E46: loop 15b | G46: Confidea F-DV/F-DI | H46: =VLOOKUP(G46,parameters!$D$4:$E$24,2,FALSE) -> 4.8 | I46: 0 | J46: 20 | K46: 24 STANDARD | L46: =VLOOKUP(K46,parameters!$G$4:$H$15,2,FALSE) -> 0.08422 | O46: 24 STANDARD | P46: =VLOOKUP(O46,parameters!$G$4:$H$15,2,FALSE) -> 0.08422
B47: =VLOOKUP(B44,parameters!$M$4:$N$15,2,FALSE) -> 0.00672 | D47: 4 | E47: loop 16b | G47: Confidea F-DV/F-DI | H47: =VLOOKUP(G47,parameters!$D$4:$E$24,2,FALSE) -> 4.8 | I47: 0 | J47: 20 | K47: 24 STANDARD | L47: =VLOOKUP(K47,parameters!$G$4:$H$15,2,FALSE) -> 0.08422 | O47: 24 STANDARD | P47: =VLOOKUP(O47,parameters!$G$4:$H$15,2,FALSE) -> 0.08422
A48: 9 | B48: 1.5 | D48: 1 | E48: loop 17a | G48: Confidea F-DV/F-DI | H48: =VLOOKUP(G48,parameters!$D$4:$E$24,2,FALSE) -> 4.8 | I48: 0 | J48: 20 | K48: 24 STANDARD | L48: =VLOOKUP(K48,parameters!$G$4:$H$15,2,FALSE) -> 0.08422 | O48: 24 STANDARD | P48: =VLOOKUP(O48,parameters!$G$4:$H$15,2,FALSE) -> 0.08422
D49: 2 | E49: loop 18a | G49: Confidea F-DV/F-DI | H49: =VLOOKUP(G49,parameters!$D$4:$E$24,2,FALSE) -> 4.8 | I49: 0 | J49: 20 | K49: 24 STANDARD | L49: =VLOOKUP(K49,parameters!$G$4:$H$15,2,FALSE) -> 0.08422 | O49: 24 STANDARD | P49: =VLOOKUP(O49,parameters!$G$4:$H$15,2,FALSE) -> 0.08422
B50: [Ohm/m] | D50: 3 | E50: loop 19a | G50: Confidea F-DV/F-DI | H50: =VLOOKUP(G50,parameters!$D$4:$E$24,2,FALSE) -> 4.8 | I50: 0 | J50: 20 | K50: 24 STANDARD | L50: =VLOOKUP(K50,parameters!$G$4:$H$15,2,FALSE) -> 0.08422 | O50: 24 STANDARD | P50: =VLOOKUP(O50,parameters!$G$4:$H$15,2,FALSE) -> 0.08422
B51: =VLOOKUP(B48,parameters!$M$4:$N$15,2,FALSE) -> 0.0112 | D51: 4 | E51: loop 20a | G51: Confidea F-DV/F-DI | H51: =VLOOKUP(G51,parameters!$D$4:$E$24,2,FALSE) -> 4.8 | I51: 0 | J51: 20 | K51: 24 STANDARD | L51: =VLOOKUP(K51,parameters!$G$4:$H$15,2,FALSE) -> 0.08422 | O51: 24 STANDARD | P51: =VLOOKUP(O51,parameters!$G$4:$H$15,2,FALSE) -> 0.08422
A52: 10 | B52: 1.5 | D52: 1 | E52: loop 17b | G52: Confidea F-DV/F-DI | H52: =VLOOKUP(G52,parameters!$D$4:$E$24,2,FALSE) -> 4.8 | I52: 0 | J52: 20 | K52: 24 STANDARD | L52: =VLOOKUP(K52,parameters!$G$4:$H$15,2,FALSE) -> 0.08422 | O52: 24 STANDARD | P52: =VLOOKUP(O52,parameters!$G$4:$H$15,2,FALSE) -> 0.08422
D53: 2 | E53: loop 18b | G53: Confidea F-DV/F-DI | H53: =VLOOKUP(G53,parameters!$D$4:$E$24,2,FALSE) -> 4.8 | I53: 0 | J53: 20 | K53: 24 STANDARD | L53: =VLOOKUP(K53,parameters!$G$4:$H$15,2,FALSE) -> 0.08422 | O53: 24 STANDARD | P53: =VLOOKUP(O53,parameters!$G$4:$H$15,2,FALSE) -> 0.08422
B54: [Ohm/m] | D54: 3 | E54: loop 19b | G54: Confidea F-DV/F-DI | H54: =VLOOKUP(G54,parameters!$D$4:$E$24,2,FALSE) -> 4.8 | I54: 0 | J54: 20 | K54: 24 STANDARD | L54: =VLOOKUP(K54,parameters!$G$4:$H$15,2,FALSE) -> 0.08422 | O54: 24 STANDARD | P54: =VLOOKUP(O54,parameters!$G$4:$H$15,2,FALSE) -> 0.08422
B55: =VLOOKUP(B52,parameters!$M$4:$N$15,2,FALSE) -> 0.0112 | D55: 4 | E55: loop 20b | G55: Confidea F-DV/F-DI | H55: =VLOOKUP(G55,parameters!$D$4:$E$24,2,FALSE) -> 4.8 | I55: 0 | J55: 20 | K55: 24 STANDARD | L55: =VLOOKUP(K55,parameters!$G$4:$H$15,2,FALSE) -> 0.08422 | O55: 24 STANDARD | P55: =VLOOKUP(O55,parameters!$G$4:$H$15,2,FALSE) -> 0.08422
A58: Results check
B60: Power consumed by interfaces | F60: =SUM(T16:T55) -> 244.4023445 | G60: [W]
B62: Current drawn by network extender 1 | F62: =SUM(U16:U19) -> 3.706228596 | G62: [A] | H62: Input voltage network extender | K62: =F16 -> 45.43191974 | L62: [V] | N62: Network extender own current | R62: =IF((K62=0),0,settings!$B$6/'Plixus powered'!K62) -> 0.1760876504 | S62: [A] | T62: Total current | U62: =F62+R62 -> 3.882316246 | V62: [A]
B63: Current drawn by network extender 2 | F63: =SUM(U20:U23) -> 1.673855902 | G63: [A] | K63: =F20 -> 45.41235276 | L63: [V] | R63: =IF((K63=0),0,settings!$B$6/'Plixus powered'!K63) -> 0.1761635219 | S63: [A] | U63: =F63+R63 -> 1.850019424 | V63: [A]
B64: Current drawn by network extender 3 | F64: =SUM(U24:U27) -> 0 | G64: [A] | K64: =F24 -> 0 | L64: [V] | R64: =IF((K64=0),0,settings!$B$6/'Plixus powered'!K64) -> 0 | S64: [A] | U64: 0 | V64: [A]
B65: Current drawn by network extender 4 | F65: =SUM(U28:U31) -> 0 | G65: [A] | K65: =F28 -> 0 | L65: [V] | R65: =IF((K65=0),0,settings!$B$6/'Plixus powered'!K65) -> 0 | S65: [A] | U65: 0 | V65: [A]
B66: Current drawn by network extender 5 | F66: =SUM(U32:U35) -> 0 | G66: [A] | K66: =F32 -> 0 | L66: [V] | R66: =IF((K66=0),0,settings!$B$6/'Plixus powered'!K66) -> 0 | S66: [A] | U66: 0 | V66: [A]
B67: Current drawn by network extender 6 | F67: =SUM(U36:U39) -> 0 | G67: [A] | K67: =F36 -> 0 | L67: [V] | R67: =IF((K67=0),0,settings!$B$6/'Plixus powered'!K67) -> 0 | S67: [A] | U67: 0 | V67: [A]
B68: Current drawn by network extender 7 | F68: =SUM(U40:U43) -> 0 | G68: [A] | K68: =F40 -> 0 | L68: [V] | R68: =IF((K68=0),0,settings!$B$6/'Plixus powered'!K68) -> 0 | S68: [A] | U68: 0 | V68: [A]
B69: Current drawn by network extender 8 | F69: =SUM(U44:U47) -> 0 | G69: [A] | K69: =F44 -> 0 | L69: [V] | R69: =IF((K69=0),0,settings!$B$6/'Plixus powered'!K69) -> 0 | S69: [A] | U69: 0 | V69: [A]
B70: Current drawn by network extender 9 | F70: =SUM(U48:U51) -> 0 | G70: [A] | K70: =F48 -> 0 | L70: [V] | R70: =IF((K70=0),0,settings!$B$6/'Plixus powered'!K70) -> 0 | S70: [A] | U70: 0 | V70: [A]
B71: Current drawn by network extender 10 | F71: =SUM(U52:U55) -> 0 | G71: [A] | K71: =F52 -> 0 | L71: [V] | R71: =IF((K71=0),0,settings!$B$6/'Plixus powered'!K71) -> 0 | S71: [A] | U71: 0 | V71: [A]
W72: length check [m]
B73: Current to splitter 1 | F73: =SUM(U62:U71) -> 5.73233567 | G73: [A] | H73: Voltage over line to splitter 1 | K73: =E10-F16 -> 2.568080257 | L73: [V] | N73: Cable power loss | R73: =F73*K73 -> 14.72109806 | S73: [W] | T73: Resistance | U73: =IF(F73=0,0,K73/F73) -> 0.4479989319 | V73: [Ohm] | W73: =U73/B19/2 -> 19.99995232 | X73: must be | Y73: =C16 -> 20
B74: Current to splitter 2 | F74: =SUM(U63:U71) -> 1.850019424 | G74: [A] | H74: Voltage over line to splitter 2 | K74: =F16-F20 -> 0.01956698045 | L74: [V] | R74: =F74*K74 -> 0.0361992939 | S74: [W] | U74: =IF(F74=0,0,K74/F74) -> 0.01057663514 | V74: [Ohm] | W74: =U74/B23/2 -> 0.7869520193 | Y74: =C20 -> 1
B75: Current to splitter 3 | F75: =SUM(U64:U71) -> 0 | G75: [A] | H75: Voltage over line to splitter 3 | K75: =F20-F24 -> 45.41235276 | L75: [V] | R75: 0 | S75: [W] | U75: 0 | V75: [Ohm] | W75: =U75/B27/2 -> 0 | Y75: =C24 -> 0
B76: Current to splitter 4 | F76: =SUM(U65:U71) -> 0 | G76: [A] | H76: Voltage over line to splitter 4 | K76: =F24-F28 -> 0 | L76: [V] | R76: 0 | S76: [W] | U76: 0 | V76: [Ohm] | W76: =U76/B31/2 -> 0 | Y76: =C28 -> 0
B77: Current to splitter 5 | F77: =SUM(U66:U71) -> 0 | G77: [A] | H77: Voltage over line to splitter 5 | K77: =F28-F32 -> 0 | L77: [V] | R77: 0 | S77: [W] | U77: 0 | V77: [Ohm] | W77: =U77/B35/2 -> 0 | Y77: =C32 -> 0
B78: Current to splitter 6 | F78: =SUM(U67:U71) -> 0 | G78: [A] | H78: Voltage over line to splitter 6 | K78: =F32-F36 -> 0 | L78: [V] | R78: 0 | S78: [W] | U78: 0 | V78: [Ohm] | W78: =U78/B39/2 -> 0 | Y78: =C36 -> 0
B79: Current to splitter 7 | F79: =SUM(U68:U71) -> 0 | G79: [A] | H79: Voltage over line to splitter 7 | K79: =F36-F40 -> 0 | L79: [V] | R79: 0 | S79: [W] | U79: 0 | V79: [Ohm] | W79: =U79/B43/2 -> 0 | Y79: =C40 -> 0
B80: Current to splitter 8 | F80: =SUM(U69:U71) -> 0 | G80: [A] | H80: Voltage over line to splitter 8 | K80: =F40-F44 -> 0 | L80: [V] | R80: 0 | S80: [W] | U80: 0 | V80: [Ohm] | W80: =U80/B47/2 -> 0 | Y80: =C44 -> 0
B81: Current to splitter 9 | F81: =SUM(U70:U71) -> 0 | G81: [A] | H81: Voltage over line to splitter 9 | K81: =F44-F48 -> 0 | L81: [V] | R81: 0 | S81: [W] | U81: 0 | V81: [Ohm] | W81: =U81/B51/2 -> 0 | Y81: =C48 -> 0
B82: Current to splitter 10 | F82: =SUM(U71) -> 0 | G82: [A] | H82: Voltage over line to splitter 10 | K82: =F48-F52 -> 0 | L82: [V] | R82: 0 | S82: [W] | U82: 0 | V82: [Ohm] | W82: =U82/B55/2 -> 0 | Y82: =C52 -> 0
B84: Sum cable loss power distribution | F84: =SUM(R73:R82) -> 14.75729736 | G84: [W]
B86: Power consumed by network extenders | F86: =settings!$B$6*'Plixus powered'!E11 -> 64 | G86: [W]
B88: Total power power supply verification | F88: =F60+F84+F86 -> 323.1596418 | G88: [W]
B89: Total power power supply calculation | F89: =N10 -> 275.1514561 | G89: [W]

Sheet Externally powered
A1: Plixus power calculator - Externally powered devices << Version 1.12 - VALID FROM 14/10/2022 UNTIL 01/06/2023 >>
A3: Legend | B3: user may enter any value
B4: user must select a predefined value
B5: user may not alter this value
B6: calculated result
B7: very important calculated result
B8: result outside limits
A10: Power supply voltage | E10: 48 | F10: [V] | K10: Power supply power | N10: 511.3913651 | O10: [W]
A11: Number of power branches | E11: 2 | K11: Power supply current | N11: 10.65398677 | O11: [A]
A13: PS5500 Power cabling | E13: Power branch | G13: Device | J13: Cabling PS5500 to first device Power cabling | N13: Cabling between devices Power cabling | R13: Calculated results
A14: Port | E14: Name | F14: Voltage | G14: Type | H14: Power | I14: Number of | J14: Length | K14: Cable | L14: Ohm/m | M14: Wiring type | N14: Length | O14: Section (mm²) | P14: Ohm/m | Q14: invalid | R14: #iter | S14: P device(s) | T14: P branch | U14: I start | V14: U first device | W14: U last device | X14: Cable loss
A15: [-] | F15: [V] | G15: [-] | H15: [W] | I15: [-] | J15: [m] | K15: [-] | L15: [Ohm] | M15: [-] | N15: [m] | O15: [-] | P15: [Ohm] | Q15: [-] | R15: [-] | S15: [W] | T15: [W] | U15: [A] | V15: [V] | W15: [V] | X15: [W]
A16: 1 | E16: no name | F16: =E$10 -> 48 | G16: uniCOS F/MM7 1xUSB | H16: =VLOOKUP(G16,parameters!$R$4:$S$15,2,FALSE) -> 12 | I16: 20 | J16: 30 | K16: 2.5 | L16: =VLOOKUP(K16,parameters!$M$4:$N$15,2,FALSE) -> 0.00672 | N16: 2 | O16: 2.5 | P16: =VLOOKUP(O16,parameters!$M$4:$N$15,2,FALSE) -> 0.00672 | Q16: invalid | R16: 21 | S16: 240 | T16: 255.6956825 | U16: 5.326993386 | V16: 45.85215627 | W16: 44.67931079 | X16: 15.69568253
A17: 2 | E17: no name | F17: 48 | G17: uniCOS F/MM7 1xUSB | H17: =VLOOKUP(G17,parameters!$R$4:$S$15,2,FALSE) -> 12 | I17: 20 | J17: 30 | K17: 2.5 | L17: =VLOOKUP(K17,parameters!$M$4:$N$15,2,FALSE) -> 0.00672 | N17: 2 | O17: 2.5 | P17: =VLOOKUP(O17,parameters!$M$4:$N$15,2,FALSE) -> 0.00672 | S17: 240 | T17: 255.6956825 | U17: 5.326993386 | V17: 45.85215627 | W17: 44.67931079 | X17: 15.69568253
A18: 3 | E18: no name | F18: 48 | G18: uniCOS F/MM7 1xUSB | H18: =VLOOKUP(G18,parameters!$R$4:$S$15,2,FALSE) -> 12 | K18: 2.5 | L18: =VLOOKUP(K18,parameters!$M$4:$N$15,2,FALSE) -> 0.00672 | O18: 2.5 | P18: =VLOOKUP(O18,parameters!$M$4:$N$15,2,FALSE) -> 0.00672
A19: 4 | E19: no name | F19: 48 | G19: uniCOS F/MM7 1xUSB | H19: =VLOOKUP(G19,parameters!$R$4:$S$15,2,FALSE) -> 12 | K19: 2.5 | L19: =VLOOKUP(K19,parameters!$M$4:$N$15,2,FALSE) -> 0.00672 | O19: 2.5 | P19: =VLOOKUP(O19,parameters!$M$4:$N$15,2,FALSE) -> 0.00672
A20: 5 | E20: no name | F20: 48 | G20: uniCOS F/MM7 1xUSB | H20: =VLOOKUP(G20,parameters!$R$4:$S$15,2,FALSE) -> 12 | K20: 1.5 | L20: =VLOOKUP(K20,parameters!$M$4:$N$15,2,FALSE) -> 0.0112 | O20: 1.5 | P20: =VLOOKUP(O20,parameters!$M$4:$N$15,2,FALSE) -> 0.0112
A21: 6 | E21: no name | F21: 48 | G21: uniCOS F/MM7 1xUSB | H21: =VLOOKUP(G21,parameters!$R$4:$S$15,2,FALSE) -> 12 | K21: 1.5 | L21: =VLOOKUP(K21,parameters!$M$4:$N$15,2,FALSE) -> 0.0112 | O21: 1.5 | P21: =VLOOKUP(O21,parameters!$M$4:$N$15,2,FALSE) -> 0.0112

Sheet devices (hidden)
A1: Flush mount multimedia | B1: FMM | C1: 71.98.2000
A12: Flush mount audio | B12: F-CM | C12: 71.98.0515 | F12: F-CD | G12: 71.98.0511 | J12: F-CV | K12: 71.98.0512 | N12: F-CI | O12: 71.98.0513 | R12: F-CIV | S12: 71.98.0514 | V12: F-CS | W12: 71.98.0551
B23: F-DM | C23: 71.98.0505 | F23: F-DD | G23: 71.98.0501 | J23: F-DV | K23: 71.98.0502 | N23: F-DI | O23: 71.98.0503 | R23: F-DIV | S23: 71.98.0504
A34: Table top audio | F34: T-CD | G34: 71.98.0115 | J34: T-CV | K34: 71.98.0116 | N34: T-CI | O34: 71.98.0117 | R34: T-CIV | S34: 71.98.0118
F45: T-DD | G45: 71.98.0105 | J45: T-DV | K45: 71.98.0106 | N45: T-DI | O45: 71.98.0107 | R45: T-DIV | S45: 71.98.0108
A56: Interpreter desk | B56: ID | C56: 71.98.2100

Sheet parameters (hidden)
A1: Device power consumption | D1: Selectable devices | G1: Selectable wire | J1: Cabling | M1: Selectable power wire | P1: Number of network extenders | R1: Selectable devices F/MM | U1: Number of network extenders
A2: Device type | B2: Device power | D2: Device type | E2: Device power | G2: AWG number | H2: AWG resistance | J2: Wiring type | M2: Section | N2: Resistance | R2: Device type | S2: Device power
A3: [-] | B3: [W] | D3: [-] | E3: [W] | G3: [-] | H3: [Ohm/1m] | J3: [-] | M3: [mm2] | N3: [Ohm/1m] | R3: [-] | S3: [W]
A4: F-CM | B4: 3.3 | D4: Confidea F-DM | E4: 3 | G4: 21 | H4: 0.042 | M4: 0.75 | N4: =settings!$B$7/(parameters!M4/1000000) -> 0.0224 | P4: 1 | R4: uniCOS F/MM7 1xUSB | S4: 12 | U4: 1
A5: F-DM | B5: 2.8 | D5: Confidea F-DD | E5: 3.8 | G5: 22 | H5: 0.05296 | M5: 1 | N5: =settings!$B$7/(parameters!M5/1000000) -> 0.0168 | P5: 2 | R5: uniCOS F/MM7 2xUSB | S5: 14.5 | U5: 2
A6: F-CD | B6: 4.1 | D6: Confidea F-DV/F-DI | E6: 4.8 | G6: 23 | H6: 0.06679 | M6: 1.5 | N6: =settings!$B$7/(parameters!M6/1000000) -> 0.0112 | P6: 3 | R6: uniCOS F/MM10 1xUSB | S6: 15 | U6: 3
A7: F-DD | B7: 3.6 | D7: Confidea F-DIV | E7: 5.3 | G7: 24 STANDARD | H7: 0.08422 | M7: 2.5 | N7: =settings!$B$7/(parameters!M7/1000000) -> 0.00672 | P7: 4 | R7: uniCOS F/MM10 2xUSB | S7: 17.5 | U7: 4
A8: F-CV | B8: 5 | D8: Confidea F-CS | E8: 2.1 | G8: 25 | H8: 0.1062 | M8: 4 | N8: =settings!$B$7/(parameters!M8/1000000) -> 0.0042 | P8: 5 | R8: uniCOS T/MM10 1xUSB | S8: 15 | U8: 5
A9: F-DV | B9: 4.5 | D9: Confidea T-DD/T-CD | E9: 3.7 | G9: 26 PATCH | H9: 0.1339 | P9: 6 | R9: uniCOS T/MM10 2xUSB | S9: 17.5 | U9: 6
A10: F-CI | B10: 4.6 | D10: Confidea FLEX | E10: 6 | G10: 27 | H10: 0.1689 | P10: 7 | R10: uniBOX 1xUSB | S10: 11.3
A11: F-DI | B11: 4 | D11: Lingua ID / ID-MM | E11: 11 | G11: 28 | H11: 0.2129 | P11: 8 | R11: uniBOX 2xUSB | S11: 13.8
A12: F-CIV | B12: 5.5 | D12: Plixus V-IN | E12: 6 | P12: 9
A13: F-DIV | B13: 5.1 | D13: Plixus V-OUT | E13: 5.5 | P13: 10
A14: F-CS | B14: 2.1 | D14: WCAP G4 | E14: 15
A15: T-CD | B15: 3.7 | D15: Plixus NP | E15: 5
A16: T-DD | B16: 3.5 | D16: uniCOS F/MM7 1xUSB | E16: 12
A17: T-CV | B17: 5.4 | D17: uniCOS F/MM7 2xUSB | E17: 14.5
A18: T-DV | B18: 5.2 | D18: uniCOS F/MM10 1xUSB | E18: 15
A19: T-CI | B19: 3.8 | D19: uniCOS F/MM10 2xUSB | E19: 17.5
A20: T-DI | B20: 3.7 | D20: uniCOS T/MM10 1xUSB | E20: 15
A21: T-CIV | B21: 5.6 | D21: uniCOS T/MM10 2xUSB | E21: 17.5
A22: T-DIV | B22: 5.4 | D22: uniBOX 1xUSB | E22: 11.3
A23: FLEX | B23: 6 | D23: uniBOX 2xUSB | E23: 13.8
A24: ID | B24: 11 | D24: F-BOX | E24: 5.3
A25: ID-MM | B25: 11
A26: FLEX | B26: 6
A27: Plixus V-IN | B27: 6
A28: Plixus V-OUT | B28: 5.5
A29: Plixus NP | B29: 5
A30: WCAP G3 | B30: 10
A31: WCAP G4 | B31: 15
A32: uniCOS F/MM7 1xUSB | B32: 12
A33: uniCOS F/MM7 2xUSB | B33: 14.5
A34: uniCOS F/MM10 1xUSB | B34: 15
A35: uniCOS F/MM10 2xUSB | B35: 17.5
A36: uniCOS T/MM10 1xUSB | B36: 15
A37: uniCOS T/MM10 2xUSB | B37: 17.5
A38: uniBOX 1xUSB | B38: 11.3
A39: uniBOX 2xUSB | B39: 13.8
A40: F-BOX | B40: 5

Sheet settings (hidden)
A1: Maximum number of iterations | B1: 5000
A2: Calculator precision | B2: 0.005
A3: Voltage too low warning | B3: 36 | C3: [V]
A4: Maximum branch current | B4: 2 | C4: [A]
A5: Maximum length start cable | B5: 100 | C5: [m]
A6: Splitter power consumption | B6: 8 | C6: [W] | D6: valid for version 2 of network extender
A7: Rho copper | B7: 1.68e-08 | C7: [Ohm.m]
A9: Max power supply current per port | B9: 16.001 | C9: [A] | D9: limited by WAGO connector
A10: Max power supply power per port | B10: =B9*'Plixus powered'!E10 -> 768.048 | C10: [W] | D10: limited by max current multiplied with power supply voltage
A11: Power supply voltage | B11: ='Plixus powered'!E10 -> 48 | C11: [V] | D11: value defined in 'calculator' tab page, do not alter it here
A13: Max power supply total current | B13: 21 | C13: [A]
A14: Max power supply total power | B14: =48*B13 -> 1008 | C14: [W]
A16: NE voltage too low warning | B16: 42 | C16: [V] | D16: power good issue when NEXT input voltage is lower than 41 V (read back FPGA, ports disabled)
